fUSD/lending_fUSD_20240420
["ID","MTS","AMOUNT","RATE_DAILY","PERIOD"]
[323008951,1713586239092,-5000.0,0.00015,2]
[323008952,1713586239102,-3005.06482437,0.00015066,2]
[323008953,1713586239112,-238.79077086,0.00015067,2]
[323008954,1713586239121,-4175.78613797,0.00015068,2]
[323008955,1713586239131,-633.33343995,0.00015068,2]
[323008956,1713586239141,-500.0,0.00015068,2]
[323008957,1713586239151,-829.51,0.00015068,2]
[323008958,1713586239160,-800.76,0.00015068,2]
[323008959,1713586239170,-500.0,0.00015068,2]
[323008960,1713586239178,-500.0,0.00015068,2]
[323008961,1713586239188,-500.0,0.00015068,2]
[323008962,1713586239198,-500.0,0.00015068,2]
[323008963,1713586239209,-772.06,0.00015068,2]
[323008964,1713586239219,-500.0,0.00015068,2]
[323008965,1713586239228,-500.0,0.00015068,2]
[323008966,1713586239238,-500.0,0.00015068,2]
[323008967,1713586239248,-500.0,0.00015068,2]
[323008968,1713586239258,-622.16,0.00015068,2]
[323008969,1713586239267,-500.0,0.00015068,2]
[323008970,1713586239278,-500.0,0.00015068,2]
[323008971,1713586239289,-500.0,0.00015068,2]
[323008972,1713586239298,-500.0,0.00015068,2]
[323008973,1713586239307,-500.0,0.00015068,2]
[323008974,1713586239316,-840.0,0.00015068,2]
[323008975,1713586239326,-500.0,0.00015068,2]
[323008976,1713586239335,-500.0,0.00015068,2]
[323008977,1713586239344,-680.88,0.00015068,2]
[323008978,1713586239353,-500.0,0.00015068,2]
[323008979,1713586239362,-500.0,0.00015068,2]
[323008980,1713586239679,-567.86,0.00015068,2]
[323008981,1713586239694,-905.7,0.00015068,2]
[323008982,1713586239704,-500.0,0.00015068,2]
[323008983,1713586239714,-1143.7,0.00015068,2]
[323008984,1713586239723,-581.42,0.00015068,2]
[323008985,1713586239732,-500.0,0.00015068,2]
[323008986,1713586239741,-500.0,0.00015068,2]
[323008987,1713586239750,-863.67,0.00015068,2]
[323008988,1713586239760,-500.0,0.00015068,2]
[323008989,1713586239769,-500.0,0.00015068,2]
[323008990,1713586239778,-500.0,0.00015068,2]
[323008991,1713586239787,-500.0,0.00015068,2]
[323008992,1713586239797,-595.25,0.00015068,2]
[323008993,1713586239806,-692.24,0.00015068,2]
[323008994,1713586239816,-500.0,0.00015068,2]
[323008995,1713586239825,-500.0,0.00015068,2]
[323008996,1713586239834,-500.0,0.00015068,2]
[323008997,1713586239844,-500.0,0.00015068,2]
[323008998,1713586239853,-500.0,0.00015068,2]
[323008999,1713586239862,-698.27,0.00015068,2]
[323009000,1713586239872,-500.0,0.00015068,2]
[323009001,1713586239882,-500.0,0.00015068,2]
[323009002,1713586239891,-500.0,0.00015068,2]
[323009003,1713586239901,-500.0,0.00015068,2]
[323009004,1713586239911,-500.0,0.00015068,2]
[323009005,1713586239920,-532.52,0.00015068,2]
[323009006,1713586239929,-500.0,0.00015068,2]
[323009007,1713586239938,-500.0,0.00015068,2]
[323009008,1713586239947,-500.0,0.00015068,2]
[323009009,1713586239956,-500.0,0.00015068,2]
[323009010,1713586239966,-500.0,0.00015068,2]
[323009011,1713586239975,-500.0,0.00015068,2]
[323009012,1713586239984,-500.0,0.00015068,2]
[323009013,1713586239994,-500.0,0.00015068,2]
[323009014,1713586240003,-500.0,0.00015068,2]
[323009015,1713586240012,-643.99,0.00015068,2]
[323009016,1713586240021,-843.69,0.00015068,2]
[323009017,1713586240030,-519.24,0.00015068,2]
[323009018,1713586240040,-500.0,0.00015068,2]
[323009019,1713586240049,-721.29,0.00015068,2]
[323009020,1713586240058,-500.0,0.00015068,2]
[323009021,1713586240067,-500.0,0.00015068,2]
[323009022,1713586240077,-541.69,0.00015068,2]
[323009023,1713586240086,-574.38,0.00015068,2]
[323009024,1713586240095,-500.0,0.00015068,2]
[323009025,1713586240104,-500.0,0.00015068,2]
[323009026,1713586240113,-502.85408837,0.00015068,2]
[323009027,1713586240123,-530.53,0.00015068,2]
[323009028,1713586240131,-500.0,0.00015068,2]
[323009029,1713586240140,-500.0,0.00015068,2]
[323009030,1713586240149,-500.0,0.00015068,2]
[323009031,1713586240158,-543.05,0.00015068,2]
[323009032,1713586240168,-500.0,0.00015068,2]
[323009033,1713586240177,-500.0,0.00015068,2]
[323009034,1713586240187,-500.0,0.00015068,2]
[323009035,1713586240196,-548.21,0.00015068,2]
[323009036,1713586240206,-685.35,0.00015068,2]
[323009037,1713586240215,-500.0,0.00015068,2]
[323009038,1713586240225,-500.0,0.00015068,2]
[323009039,1713586240234,-500.0,0.00015068,2]
[323009040,1713586240243,-500.0,0.00015068,2]
[323009041,1713586240252,-500.0,0.00015068,2]
[323009042,1713586240261,-500.0,0.00015068,2]
[323009043,1713586240271,-500.0,0.00015068,2]
[323009044,1713586240283,-919.31,0.00015068,2]
[323009045,1713586240293,-500.0,0.00015068,2]
[323009046,1713586240302,-500.0,0.00015068,2]
[323009047,1713586240311,-500.0,0.00015068,2]
[323009048,1713586240320,-500.0,0.00015068,2]
[323009049,1713586240330,-500.0,0.00015068,2]
[323009050,1713586240339,-500.0,0.00015068,2]
[323009051,1713586240349,-781.9,0.00015068,2]
[323009052,1713586240360,-500.0,0.00015068,2]
[323009053,1713586240369,-500.0,0.00015068,2]
[323009054,1713586240379,-644.53,0.00015068,2]
[323009055,1713586240388,-500.0,0.00015068,2]
[323009056,1713586240398,-747.12,0.00015068,2]
[323009057,1713586240408,-500.0,0.00015068,2]
[323009058,1713586240417,-500.0,0.00015068,2]
[323009059,1713586240426,-500.0,0.00015068,2]
[323009060,1713586240436,-652.96,0.00015068,2]
[323009061,1713586240445,-704.08,0.00015068,2]
[323009062,1713586240454,-709.99,0.00015068,2]
[323009063,1713586240463,-1214.02,0.00015068,2]
[323009064,1713586240473,-504.71,0.00015068,2]
[323009065,1713586240482,-621.68,0.00015068,2]
[323009066,1713586240493,-500.0,0.00015068,2]
[323009067,1713586240502,-500.0,0.00015068,2]
[323009068,1713586240512,-500.0,0.00015068,2]
[323009069,1713586240523,-500.0,0.00015068,2]
[323009070,1713586240536,-500.0,0.00015068,2]
[323009071,1713586240545,-704.63,0.00015068,2]
[323009072,1713586240554,-736.28,0.00015068,2]
[323009073,1713586240563,-1154.13,0.00015068,2]
[323009074,1713586240572,-500.0,0.00015068,2]
[323009075,1713586240583,-577.19,0.00015068,2]
[323009076,1713586240593,-590.71,0.00015068,2]
[323009077,1713586240602,-500.0,0.00015068,2]
[323009078,1713586240612,-500.0,0.00015068,2]
[323009079,1713586240622,-500.0,0.00015068,2]
[323009080,1713586240631,-500.0,0.00015068,2]
[323009081,1713586240640,-573.26,0.00015068,2]
[323009082,1713586240649,-653.68,0.00015068,2]
[323009083,1713586240659,-507.44,0.00015068,2]
[323009084,1713586240671,-549.05,0.00015068,2]
[323009085,1713586240680,-500.0,0.00015068,2]
[323009086,1713586240689,-500.0,0.00015068,2]
[323009087,1713586240699,-1018.96,0.00015068,2]
[323009088,1713586240709,-500.0,0.00015068,2]
[323009089,1713586240720,-500.0,0.00015068,2]
[323009090,1713586240730,-500.0,0.00015068,2]
[323009091,1713586240739,-1479.17,0.00015068,2]
[323009092,1713586240749,-500.0,0.00015068,2]
[323009093,1713586240760,-500.0,0.00015068,2]
[323009094,1713586240770,-500.0,0.00015068,2]
[323009095,1713586240781,-500.0,0.00015068,2]
[323009096,1713586240791,-500.0,0.00015068,2]
[323009097,1713586240800,-500.0,0.00015068,2]
[323009098,1713586240812,-500.0,0.00015068,2]
[323009099,1713586240822,-500.0,0.00015068,2]
[323009100,1713586240832,-1062.73,0.00015068,2]
[323009101,1713586240841,-500.0,0.00015068,2]
[323009102,1713586240851,-547.78,0.00015068,2]
[323009103,1713586240861,-500.0,0.00015068,2]
[323009104,1713586240871,-500.0,0.00015068,2]
[323009105,1713586240880,-624.48,0.00015068,2]
[323009106,1713586240891,-865.85,0.00015068,2]
[323009107,1713586240901,-500.0,0.00015068,2]
[323009108,1713586240913,-500.0,0.00015068,2]
[323009109,1713586240924,-567.72,0.00015068,2]
[323009110,1713586240935,-845.32,0.00015068,2]
[323009111,1713586240945,-1143.63,0.00015068,2]
[323009112,1713586240954,-258.37449766,0.00015068,2]
[323009113,1713586240965,-638.08,0.00015068,2]
[323009114,1713586240975,-500.0,0.00015068,2]
[323009115,1713586240986,-594.56,0.00015068,2]
[323009116,1713586240995,-500.0,0.00015068,2]
[323009117,1713586241006,-626.34,0.00015068,2]
[323009118,1713586241016,-884.38,0.00015068,2]
[323009119,1713586241025,-967.9,0.00015068,2]
[323009120,1713586241036,-500.0,0.00015068,2]
[323009121,1713586241046,-883.92,0.00015068,2]
[323009122,1713586241057,-988.83,0.00015068,2]
[323009123,1713586241067,-500.0,0.00015068,2]
[323009124,1713586241076,-500.0,0.00015068,2]
[323009125,1713586241085,-768.57,0.00015068,2]
[323009126,1713586241094,-500.0,0.00015068,2]
[323009127,1713586241103,-1231.78,0.00015068,2]
[323009128,1713586241112,-534.35,0.00015068,2]
[323009129,1713586241121,-743.83,0.00015068,2]
[323009130,1713586241130,-500.0,0.00015068,2]
[323009131,1713586241140,-500.0,0.00015068,2]
[323009132,1713586241149,-801.05,0.00015068,2]
[323009133,1713586241158,-746.13,0.00015068,2]
[323009134,1713586241167,-500.0,0.00015068,2]
[323009135,1713586241176,-511.89,0.00015068,2]
[323009136,1713586241186,-500.0,0.00015068,2]
[323009137,1713586241195,-867.35,0.00015068,2]
[323009138,1713586241204,-500.0,0.00015068,2]
[323009139,1713586241214,-500.0,0.00015068,2]
[323009140,1713586241223,-890.06,0.00015068,2]
[323009141,1713586241232,-698.91,0.00015068,2]
[323009142,1713586241241,-500.0,0.00015068,2]
[323009143,1713586241250,-500.0,0.00015068,2]
[323009144,1713586241259,-529.86,0.00015068,2]
[323009145,1713586241268,-500.0,0.00015068,2]
[323009146,1713586241278,-500.0,0.00015068,2]
[323009147,1713586241289,-500.0,0.00015068,2]
[323009148,1713586241298,-500.0,0.00015068,2]
[323009149,1713586241307,-500.0,0.00015068,2]
[323009150,1713586241319,-546.26,0.00015068,2]
[323009151,1713586241328,-489.65370128,0.00015068,2]
[323009152,1713586241337,-500.0,0.00015068,2]
[323009153,1713586241346,-500.0,0.00015068,2]
[323009154,1713586241355,-500.0,0.00015068,2]
[323009155,1713586241364,-500.0,0.00015068,2]
[323009156,1713586241373,-823.36,0.00015068,2]
[323009157,1713586241382,-500.0,0.00015068,2]
[323009158,1713586241392,-500.0,0.00015068,2]
[323009159,1713586241400,-570.23,0.00015068,2]
[323009160,1713586241409,-597.29,0.00015068,2]
[323009161,1713586241418,-500.0,0.00015068,2]
[323009162,1713586241428,-500.0,0.00015068,2]
[323009163,1713586241437,-500.0,0.00015068,2]
[323009164,1713586241446,-500.0,0.00015068,2]
[323009165,1713586241455,-500.0,0.00015068,2]
[323009166,1713586241463,-500.0,0.00015068,2]
[323009167,1713586241474,-1258.35,0.00015068,2]
[323009168,1713586241483,-500.0,0.00015068,2]
[323009169,1713586241492,-608.76,0.00015068,2]
[323009170,1713586241501,-508.31,0.00015068,2]
[323009171,1713586241510,-500.0,0.00015068,2]
[323009172,1713586241519,-500.0,0.00015068,2]
[323009173,1713586241528,-412.09763732,0.00015068,2]
[323009174,1713586241537,-500.0,0.00015068,2]
[323009175,1713586241547,-500.0,0.00015068,2]
[323009176,1713586241556,-500.0,0.00015068,2]
[323009177,1713586241565,-500.0,0.00015068,2]
[323009178,1713586241574,-500.0,0.00015068,2]
[323009179,1713586241583,-1062.51,0.00015068,2]
[323009180,1713586241592,-500.0,0.00015068,2]
[323009181,1713586241601,-500.0,0.00015068,2]
[323009182,1713586241610,-675.52,0.00015068,2]
[323009183,1713586241620,-500.0,0.00015068,2]
[323009184,1713586241629,-500.0,0.00015068,2]
[323009185,1713586241638,-500.0,0.00015068,2]
[323009186,1713586241647,-500.0,0.00015068,2]
[323009187,1713586241656,-500.0,0.00015068,2]
[323009188,1713586241666,-990.99,0.00015068,2]
[323009189,1713586241675,-649.05,0.00015068,2]
[323009190,1713586241684,-500.0,0.00015068,2]
[323009191,1713586241694,-500.0,0.00015068,2]
[323009192,1713586241703,-500.0,0.00015068,2]
[323009193,1713586241713,-500.0,0.00015068,2]
[323009194,1713586241723,-424.77126468,0.00015068,2]
[323009195,1713586241732,-500.0,0.00015068,2]
[323009196,1713586241741,-500.0,0.00015068,2]
[323009197,1713586241751,-500.0,0.00015068,2]
[323009198,1713586241760,-500.0,0.00015068,2]
[323009199,1713586241770,-801.41,0.00015068,2]
[323009200,1713586241779,-779.97,0.00015068,2]
[323009201,1713586241788,-500.0,0.00015068,2]
[323009202,1713586241798,-1528.8,0.00015068,2]
[323009203,1713586241808,-500.0,0.00015068,2]
[323009204,1713586241817,-500.0,0.00015068,2]
[323009205,1713586241828,-687.02,0.00015068,2]
[323009206,1713586241839,-500.0,0.00015068,2]
[323009207,1713586241848,-500.0,0.00015068,2]
[323009208,1713586241859,-592.68,0.00015068,2]
[323009209,1713586241870,-823.23,0.00015068,2]
[323009210,1713586241882,-500.0,0.00015068,2]
[323009211,1713586241892,-500.0,0.00015068,2]
[323009212,1713586241902,-543.4647276,0.00015068,2]
[323009213,1713586241911,-500.0,0.00015068,2]
[323009214,1713586241920,-523.78,0.00015068,2]
[323009215,1713586241929,-553.03,0.00015068,2]
[323009216,1713586241939,-500.0,0.00015068,2]
[323009217,1713586241950,-1125.82,0.00015068,2]
[323009218,1713586241960,-500.0,0.00015068,2]
[323009219,1713586241973,-250.32018949,0.00015068,2]
[323009220,1713586241984,-500.0,0.00015068,2]
[323009221,1713586241994,-1064.54,0.00015068,2]
[323009222,1713586242004,-941.27,0.00015068,2]
[323009223,1713586242014,-500.0,0.00015068,2]
[323009224,1713586242024,-626.11,0.00015068,2]
[323009225,1713586242034,-500.0,0.00015068,2]
[323009226,1713586242046,-698.64,0.00015068,2]
[323009227,1713586242057,-500.0,0.00015068,2]
[323009228,1713586242068,-588.8556026,0.00015068,2]
[323009229,1713586242078,-500.0,0.00015068,2]
[323009230,1713586242089,-500.0,0.00015068,2]
[323009231,1713586242100,-1643.56,0.00015068,2]
[323009232,1713586242110,-1712.38,0.00015068,2]
[323009233,1713586242120,-500.0,0.00015068,2]
[323009234,1713586242131,-500.0,0.00015068,2]
[323009235,1713586242142,-854.2,0.00015068,2]
[323009236,1713586242155,-543.23,0.00015068,2]
[323009237,1713586242165,-500.0,0.00015068,2]
[323009238,1713586242177,-500.0,0.00015068,2]
[323009239,1713586242188,-500.0,0.00015068,2]
[323009240,1713586242199,-500.0,0.00015068,2]
[323009241,1713586242211,-500.0,0.00015068,2]
[323009242,1713586242224,-1607.01,0.00015068,2]
[323009243,1713586242234,-505.57,0.00015068,2]
[323009244,1713586242246,-1282.42,0.00015068,2]
[323009245,1713586242258,-500.0,0.00015068,2]
[323009246,1713586242271,-500.0,0.00015068,2]
[323009247,1713586242285,-500.0,0.00015068,2]
[323009248,1713586242296,-500.0,0.00015068,2]
[323009249,1713586242305,-500.0,0.00015068,2]
[323009250,1713586242318,-515.1,0.00015068,2]
[323009251,1713586242332,-1018.55,0.00015068,2]
[323009252,1713586242343,-802.64,0.00015068,2]
[323009253,1713586242354,-500.0,0.00015068,2]
[323009254,1713586242366,-541.43,0.00015068,2]
[323009255,1713586242377,-600.25,0.00015068,2]
[323009256,1713586242388,-1783.59,0.00015068,2]
[323009257,1713586242398,-668.56,0.00015068,2]
[323009258,1713586242413,-578.6,0.00015068,2]
[323009259,1713586242424,-859.39,0.00015068,2]
[323009260,1713586242436,-500.0,0.00015068,2]
[323009261,1713586242447,-500.0,0.00015068,2]
[323009262,1713586242457,-500.0,0.00015068,2]
[323009263,1713586242468,-500.0,0.00015068,2]
[323009264,1713586242478,-1019.9,0.00015068,2]
[323009265,1713586242489,-500.0,0.00015068,2]
[323009266,1713586242499,-500.0,0.00015068,2]
[323009267,1713586242509,-1356.42,0.00015068,2]
[323009268,1713586242519,-1195.95,0.00015068,2]
[323009269,1713586242528,-811.29,0.00015068,2]
[323009270,1713586242539,-1341.31,0.00015068,2]
[323009271,1713586242549,-500.0,0.00015068,2]
[323009272,1713586242558,-500.0,0.00015068,2]
[323009273,1713586242568,-500.0,0.00015068,2]
[323009274,1713586242578,-940.17,0.00015068,2]
[323009275,1713586242587,-500.0,0.00015068,2]
[323009276,1713586242597,-500.0,0.00015068,2]
[323009277,1713586242607,-500.0,0.00015068,2]
[323009278,1713586242617,-500.0,0.00015068,2]
[323009279,1713586242627,-1672.36,0.00015068,2]
[323009280,1713586242638,-500.0,0.00015068,2]
[323009281,1713586242648,-1790.84,0.00015068,2]
[323009282,1713586242658,-500.0,0.00015068,2]
[323009283,1713586242668,-500.0,0.00015068,2]
[323009284,1713586242678,-1577.86,0.00015068,2]
[323009285,1713586242687,-500.0,0.00015068,2]
[323009286,1713586242698,-500.0,0.00015068,2]
[323009287,1713586242707,-1100.03,0.00015068,2]
[323009288,1713586242717,-150.0,0.00015068,2]
[323009289,1713586242727,-500.0,0.00015068,2]
[323009290,1713586242738,-500.0,0.00015068,2]
[323009291,1713586242749,-1168.09,0.00015068,2]
[323009292,1713586242758,-500.0,0.00015068,2]
[323009293,1713586242769,-500.0,0.00015068,2]
[323009294,1713586242778,-707.52,0.00015068,2]
[323009295,1713586242789,-500.0,0.00015068,2]
[323009296,1713586242800,-850.38,0.00015068,2]
[323009297,1713586242810,-500.0,0.00015068,2]
[323009298,1713586242820,-500.0,0.00015068,2]
[323009299,1713586242829,-1549.19,0.00015068,2]
[323009300,1713586242838,-500.0,0.00015068,2]
[323009301,1713586242847,-500.0,0.00015068,2]
[323009302,1713586242856,-500.0,0.00015068,2]
[323009303,1713586242866,-500.0,0.00015068,2]
[323009304,1713586242876,-500.0,0.00015068,2]
[323009305,1713586242885,-500.0,0.00015068,2]
[323009306,1713586242894,-1562.33,0.00015068,2]
[323009307,1713586242904,-628.14,0.00015068,2]
[323009308,1713586242914,-515.52,0.00015068,2]
[323009309,1713586242924,-500.0,0.00015068,2]
[323009310,1713586242935,-500.0,0.00015068,2]
[323009311,1713586242945,-683.47,0.00015068,2]
[323009312,1713586242955,-519.52,0.00015068,2]
[323009313,1713586242965,-1635.57,0.00015068,2]
[323009314,1713586242975,-1565.42,0.00015068,2]
[323009315,1713586242984,-500.0,0.00015068,2]
[323009316,1713586242993,-500.0,0.00015068,2]
[323009317,1713586243002,-500.0,0.00015068,2]
[323009318,1713586243012,-1473.24,0.00015068,2]
[323009319,1713586243021,-1216.24,0.00015068,2]
[323009320,1713586243030,-500.0,0.00015068,2]
[323009321,1713586243041,-567.29,0.00015068,2]
[323009322,1713586243050,-500.0,0.00015068,2]
[323009324,1713586243061,-691.1,0.00015068,2]
[323009326,1713586243070,-504.19523458,0.00015068,2]
[323009327,1713586243079,-1301.9,0.00015068,2]
[323009328,1713586243089,-537.84,0.00015068,2]
[323009329,1713586243098,-500.0,0.00015068,2]
[323009330,1713586243107,-500.0,0.00015068,2]
[323009332,1713586243117,-500.0,0.00015068,2]
[323009334,1713586243126,-500.0,0.00015068,2]
[323009336,1713586243135,-609.33,0.00015068,2]
[323009338,1713586243144,-500.0,0.00015068,2]
[323009339,1713586243153,-1402.22,0.00015068,2]
[323009340,1713586243162,-500.0,0.00015068,2]
[323009341,1713586243171,-374.55986881,0.00015068,2]
[323009342,1713586243181,-525.44,0.00015068,2]
[323009343,1713586243191,-500.0,0.00015068,2]
[323009344,1713586243200,-1036.4,0.00015068,2]
[323009345,1713586243209,-585.76,0.00015068,2]
[323009346,1713586243218,-662.69,0.00015068,2]
[323009348,1713586243228,-500.0,0.00015068,2]
[323009350,1713586243237,-500.0,0.00015068,2]
[323009353,1713586243245,-500.0,0.00015068,2]
[323009355,1713586243254,-500.0,0.00015068,2]
[323009358,1713586243263,-500.0,0.00015068,2]
[323009362,1713586243272,-500.0,0.00015068,2]
[323009365,1713586243284,-1334.47,0.00015068,2]
[323009368,1713586243295,-500.0,0.00015068,2]
[323009371,1713586243305,-500.0,0.00015068,2]
[323009373,1713586243313,-847.02,0.00015068,2]
[323009375,1713586243322,-536.84,0.00015068,2]
[323009377,1713586243331,-500.0,0.00015068,2]
[323009378,1713586243340,-2548.03,0.00015068,2]
[323009379,1713586243349,-500.0,0.00015068,2]
[323009380,1713586243360,-630.75,0.00015068,2]
[323009381,1713586243369,-500.0,0.00015068,2]
[323009382,1713586243378,-500.0,0.00015068,2]
[323009383,1713586243387,-1657.38,0.00015068,2]
[323009384,1713586243396,-630.48,0.00015068,2]
[323009385,1713586243405,-419.82773061,0.00015068,2]
[323009386,1713586243414,-500.0,0.00015068,2]
[323009387,1713586243424,-1028.83,0.00015068,2]
[323009388,1713586243433,-500.0,0.00015068,2]
[323009389,1713586243442,-500.0,0.00015068,2]
[323009390,1713586243451,-500.0,0.00015068,2]
[323009391,1713586243460,-991.36,0.00015068,2]
[323009392,1713586243469,-649.23,0.00015068,2]
[323009393,1713586243478,-715.72,0.00015068,2]
[323009394,1713586243487,-500.0,0.00015068,2]
[323009395,1713586243496,-500.0,0.00015068,2]
[323009396,1713586243505,-500.0,0.00015068,2]
[323009397,1713586243514,-500.0,0.00015068,2]
[323009398,1713586243523,-2732.76,0.00015068,2]
[323009399,1713586243532,-704.28,0.00015068,2]
[323009400,1713586243544,-3063.59,0.00015068,2]
[323009401,1713586243553,-500.0,0.00015068,2]
[323009402,1713586243563,-500.0,0.00015068,2]
[323009403,1713586243572,-500.0,0.00015068,2]
[323009404,1713586243581,-519.89,0.00015068,2]
[323009405,1713586243590,-500.0,0.00015068,2]
[323009406,1713586243599,-1381.52,0.00015068,2]
[323009407,1713586243608,-500.0,0.00015068,2]
[323009408,1713586243617,-1956.19,0.00015068,2]
[323009409,1713586243626,-500.0,0.00015068,2]
[323009410,1713586243635,-3961.53,0.00015068,2]
[323009411,1713586243645,-500.0,0.00015068,2]
[323009412,1713586243654,-500.0,0.00015068,2]
[323009413,1713586243663,-999.86,0.00015068,2]
[323009414,1713586243672,-995.06,0.00015068,2]
[323009415,1713586243681,-500.0,0.00015068,2]
[323009416,1713586243691,-500.0,0.00015068,2]
[323009417,1713586243700,-500.0,0.00015068,2]
[323009418,1713586243709,-2275.71,0.00015068,2]
[323009419,1713586243718,-500.0,0.00015068,2]
[323009420,1713586243727,-500.0,0.00015068,2]
[323009421,1713586243736,-1569.31,0.00015068,2]
[323009422,1713586243745,-500.0,0.00015068,2]
[323009423,1713586243755,-500.0,0.00015068,2]
[323009424,1713586243764,-500.0,0.00015068,2]
[323009425,1713586243774,-500.0,0.00015068,2]
[323009426,1713586243783,-612.24112044,0.00015068,2]
[323009431,1713586244020,-1051.47,0.00015068,2]
[323009432,1713586244031,-616.84,0.00015068,2]
[323009433,1713586244045,-650.38,0.00015068,2]
[323009434,1713586244054,-1432.98,0.00015068,2]
[323009435,1713586244064,-1977.51,0.00015068,2]
[323009436,1713586244074,-500.0,0.00015068,2]
[323009437,1713586244085,-686.18,0.00015068,2]
[323009438,1713586244094,-500.0,0.00015068,2]
[323009439,1713586244104,-1502.98,0.00015068,2]
[323009440,1713586244114,-854.27,0.00015068,2]
[323009441,1713586244124,-500.0,0.00015068,2]
[323009442,1713586244133,-500.0,0.00015068,2]
[323009443,1713586244143,-500.0,0.00015068,2]
[323009444,1713586244154,-500.0,0.00015068,2]
[323009445,1713586244163,-1245.76,0.00015068,2]
[323009446,1713586244173,-500.0,0.00015068,2]
[323009447,1713586244182,-500.0,0.00015068,2]
[323009448,1713586244191,-618.08,0.00015068,2]
[323009449,1713586244202,-4302.42993926,0.00015068,2]
[323009450,1713586244236,-660.69006074,0.00015068,2]
[323009451,1713586244245,-500.0,0.00015068,2]
[323009452,1713586244255,-500.0,0.00015068,2]
[323009453,1713586244264,-502.08,0.00015068,2]
[323009454,1713586244273,-1256.68,0.00015068,2]
[323009455,1713586244285,-500.0,0.00015068,2]
[323009456,1713586244298,-500.0,0.00015068,2]
[323009457,1713586244307,-500.0,0.00015068,2]
[323009458,1713586244317,-2072.47,0.00015068,2]
[323009459,1713586244327,-500.0,0.00015068,2]
[323009460,1713586244337,-500.0,0.00015068,2]
[323009461,1713586244346,-1105.27,0.00015068,2]
[323009462,1713586244356,-500.0,0.00015068,2]
[323009463,1713586244366,-1836.84,0.00015068,2]
[323009464,1713586244375,-500.0,0.00015068,2]
[323009465,1713586244384,-2093.84,0.00015068,2]
[323009466,1713586244393,-500.0,0.00015068,2]
[323009467,1713586244403,-500.0,0.00015068,2]
[323009468,1713586244412,-160.12879825,0.00015068,2]
[323009469,1713586244440,-897.12120175,0.00015068,2]
[323009470,1713586244450,-817.78,0.00015068,2]
[323009471,1713586244459,-1041.5,0.00015068,2]
[323009472,1713586244468,-500.0,0.00015068,2]
[323009473,1713586244478,-500.0,0.00015068,2]
[323009474,1713586244487,-512.28,0.00015068,2]
[323009475,1713586244496,-2498.65,0.00015068,2]
[323009476,1713586244506,-500.0,0.00015068,2]
[323009477,1713586244515,-9666.71147368,0.00015068,2]
[323009478,1713586244527,-3800.43282588,0.00015068,2]
[323009479,1713586244584,-691.09300298,0.00015068,2]